bitfinex/quotes_SOLUSD_20250403
["timestamp","ask_amount","ask_price","bid_price","bid_amount"]
[1743695472107,30.72010863,114.0,113.94,30.57794706]
[1743695472108,30.72010863,113.99,113.94,30.57794706]
[1743695472722,0.28432314,113.97,113.93,30.57794706]
[1743695473211,30.57794706,113.95,113.9,8.92136157]
[1743695473424,30.57794706,113.96,113.91,30.57794706]
[1743695473636,0.28432314,113.97,113.92,30.57794706]
[1743695473842,0.28432314,113.97,113.93,30.57794706]
[1743695474031,32.18184706,113.98,113.93,30.57794706]
[1743695474214,30.57794706,113.98,113.94,30.57794706]
[1743695474617,0.28432314,113.98,113.94,39.35384706]
[1743695474819,0.28432314,113.98,113.94,30.57794706]
[1743695475122,45.59144706,113.99,113.94,39.35434706]
[1743695475528,30.57794706,113.98,113.94,39.35434706]
[1743695475735,34.12331822,113.99,113.94,27.88621822]
[1743695476541,19.39414136,113.98,113.93,27.88681822]
[1743695477351,19.10981822,113.96,113.9,8.7796]
[1743695477559,0.28432314,113.95,113.91,19.10981822]
[1743695477838,19.39414136,113.95,113.9,27.88941822]
[1743695478257,0.28432314,113.95,113.91,19.10981822]
[1743695478743,0.28432314,113.95,113.91,27.88801822]
[1743695478918,28.23414136,113.95,113.9,27.88901822]
[1743695479245,19.10981822,113.94,113.9,27.88901822]
[1743695479423,19.10981822,113.94,113.9,8.7792]
[1743695480223,19.10981822,113.94,113.89,25.31901822]
[1743695480224,0.28432314,113.93,113.89,14.9892]
[1743695480432,19.10981822,113.94,113.82,52.26289018]
[1743695480433,19.10981822,113.9,113.83,26.09587294]
[1743695480752,19.10981822,113.87,113.84,8.7842]
[1743695481221,19.10981822,113.87,113.83,21.82004184]
[1743695481422,19.10981822,113.86,113.83,13.03544184]
[1743695481648,19.39414136,113.84,113.83,13.03544184]
[1743695481940,58.43330722,113.84,113.83,13.03544184]
[1743695482137,68.88446879,113.84,113.83,13.03544184]
[1743695482733,62.15504971,113.84,113.83,13.03544184]
[1743695483322,0.28432314,113.82,113.79,8.7877]
[1743695483524,30.65933522,113.81,113.79,8.7877]
[1743695484455,2.19694249,113.84,113.8,30.65933522]
[1743695484750,39.49933522,113.85,113.81,30.65933522]
[1743695485136,30.94365836,113.84,113.8,30.65933522]
[1743695485438,27.48964886,113.85,113.8,30.65933522]
[1743695485439,39.49933522,113.85,113.8,30.65933522]
[1743695485638,39.49933522,113.85,113.79,0.14216157]
[1743695485836,39.49933522,113.85,113.81,30.65933522]
[1743695486134,8.84,113.85,113.82,30.65933522]
[1743695486335,8.84,113.85,113.82,8.7858]
[1743695486538,8.84,113.85,113.82,39.44513522]
[1743695486923,8.84,113.85,113.82,8.7858]
[1743695489528,39.49933522,113.85,113.82,8.7858]
[1743695490137,30.65933522,113.84,113.82,8.7858]
[1743695490336,39.49933522,113.85,113.81,8.7865]
[1743695492137,30.94365836,113.84,113.81,8.7865]
[1743695492448,30.94365836,113.84,113.8,8.7873]
[1743695492745,29.43365836,113.84,113.8,39.44663522]
[1743695493454,29.43365836,113.84,113.8,8.7873]
[1743695493764,30.65933522,113.83,113.8,8.7873]
[1743695493926,30.65933522,113.82,113.8,8.7873]
[1743695494454,30.65933522,113.82,113.79,8.7881]
[1743695494854,8.84,113.85,113.79,39.44743522]
[1743695495026,27.48964886,113.85,113.8,30.65933522]
[1743695495226,58.14898408,113.85,113.8,30.65933522]
[1743695495752,30.65933522,113.84,113.8,30.65933522]
[1743695496255,8.84,113.85,113.81,30.65933522]
[1743695496479,39.49933522,113.85,113.82,8.7858]
[1743695496756,8.84,113.85,113.82,8.7858]
[1743695497155,39.49933522,113.85,113.82,8.7858]
[1743695497525,30.65933522,113.84,113.82,8.7858]
[1743695497726,30.65933522,113.83,113.79,8.7881]
[1743695497947,30.65933522,113.82,113.79,8.7881]
[1743695498151,8.84,113.81,113.79,8.7881]
[1743695498651,39.49933522,113.81,113.78,8.7888]
[1743695498958,30.65933522,113.8,113.77,8.7896]
[1743695499325,30.65933522,113.78,113.72,29.5228]
[1743695499531,30.65933522,113.78,113.73,61.57599679]
[1743695499946,8.84,113.77,113.73,30.91666157]
[1743695500249,8.84,113.77,113.74,30.65933522]
[1743695500447,8.84,113.77,113.76,39.44973522]
[1743695500652,8.84,113.8,113.76,39.44973522]
[1743695500841,8.84,113.8,113.77,30.65933522]
[1743695502049,8.98216157,113.79,113.75,8.7908]
[1743695502252,39.49933522,113.79,113.75,8.7908]
[1743695503840,39.49933522,113.79,113.75,39.45013522]
[1743695504155,8.84,113.79,113.75,61.42813522]
[1743695504351,39.49933522,113.79,113.75,30.7688]
[1743695504662,39.49933522,113.79,113.75,61.42813522]
[1743695504663,8.84,113.79,113.75,61.42813522]
[1743695504852,8.84,113.79,113.76,30.65933522]
[1743695505236,8.84,113.8,113.77,30.65933522]
[1743695506346,8.84,113.8,113.78,8.7888]
[1743695507258,8.84,113.8,113.77,8.7892]
[1743695507569,30.65933522,113.79,113.75,30.65933522]
[1743695507732,30.65933522,113.78,113.75,8.7905]
[1743695508059,49.59330722,113.79,113.75,8.7905]
[1743695508243,30.65933522,113.8,113.75,39.44983522]
[1743695508444,39.49933522,113.8,113.75,39.44983522]
[1743695508970,30.65933522,113.79,113.75,8.7905]
[1743695510169,9.21478471,113.79,113.74,8.7915]
[1743695510466,30.65933522,113.76,113.74,8.7915]
[1743695510676,8.84,113.76,113.74,8.7915]
[1743695511970,39.49933522,113.76,113.71,30.65933522]
[1743695512136,48.28973522,113.76,113.7,30.7822]
[1743695512341,30.65933522,113.75,113.7,30.7822]
[1743695512563,30.65933522,113.75,113.71,30.65933522]
[1743695512751,30.65933522,113.75,113.7,61.44153522]
[1743695513141,30.65933522,113.75,113.7,30.7822]
[1743695513350,30.65933522,113.75,113.7,61.44153522]
[1743695513748,30.65933522,113.75,113.7,39.45433522]
[1743695513947,30.65933522,113.72,113.67,8.7973]
[1743695514148,8.84,113.72,113.68,30.65933522]
[1743695514356,8.84,113.72,113.69,30.65933522]
[1743695514665,8.84,113.72,113.7,30.65933522]
[1743695514879,8.84,113.75,113.71,30.65933522]
[1743695515376,39.49933522,113.75,113.7,30.65933522]
[1743695515679,39.49933522,113.75,113.71,39.45363522]
[1743695515885,30.65933522,113.74,113.71,8.7943]
[1743695516068,30.65933522,113.72,113.67,52.65273522]
[1743695516658,30.65933522,113.72,113.68,30.65933522]
[1743695516870,30.65933522,113.73,113.68,30.65933522]
[1743695517180,30.65933522,113.73,113.67,30.7907]
[1743695517377,39.45273522,113.73,113.68,30.65933522]
[1743695517582,30.65933522,113.72,113.68,30.65933522]
[1743695518281,30.65933522,113.72,113.67,8.7973]
[1743695518481,30.65933522,113.72,113.67,39.45663522]
[1743695518848,8.84,113.71,113.68,30.65933522]
[1743695519045,39.49933522,113.71,113.69,8.7958]
[1743695519269,39.49933522,113.71,113.68,8.7962]
[1743695519483,8.84,113.71,113.68,8.7962]
[1743695520569,39.49933522,113.71,113.68,8.7962]
[1743695520777,39.49933522,113.71,113.67,8.797]
[1743695521164,30.65933522,113.7,113.67,8.797]
[1743695521372,30.65933522,113.7,113.65,39.45823522]
[1743695521579,1.526,113.66,113.62,8.8012]
[1743695521886,6.5527,113.76,113.65,30.65933522]
[1743695522054,30.65933522,113.75,113.7,30.65933522]
[1743695522382,30.65933522,113.73,113.68,30.65933522]
[1743695522685,30.65933522,113.71,113.66,30.65933522]
[1743695522890,30.65933522,113.7,113.64,1.71716157]
[1743695523195,30.65933522,113.7,113.66,8.7981]
[1743695523500,32.54875836,113.72,113.67,30.65933522]
[1743695524177,30.65933522,113.71,113.66,39.45743522]
[1743695524895,32.26443522,113.72,113.67,30.65933522]
[1743695525079,18.64964886,113.73,113.68,30.65933522]
[1743695525266,49.30898408,113.73,113.69,8.7958]
[1743695525587,329.18,113.75,113.72,30.65933522]
[1743695526274,329.18,113.75,113.7,0.14216157]
[1743695526275,329.18,113.75,113.73,30.65933522]
[1743695526582,32.26513522,113.78,113.73,30.65933522]
[1743695526791,1.6058,113.78,113.74,30.65933522]
[1743695526975,45.85353522,113.79,113.7,10.56346157]
[1743695527281,30.65933522,113.78,113.74,30.65933522]
[1743695527582,1.5694,113.81,113.76,30.65933522]
[1743695527888,41.01533522,113.81,113.76,30.65933522]
[1743695528185,30.65933522,113.79,113.74,26.0]
[1743695528390,30.65933522,113.79,113.75,30.65933522]
[1743695528565,49.30898408,113.8,113.75,30.65933522]
[1743695529180,30.65933522,113.8,113.75,30.65933522]
[1743695529378,329.2,113.82,113.78,30.65933522]
[1743695529581,368.64533522,113.82,113.77,30.65933522]
[1743695529766,30.65933522,113.81,113.77,30.65933522]
[1743695529965,30.65933522,113.81,113.76,8.7904]
[1743695530184,30.65933522,113.81,113.77,30.65933522]
[1743695530499,30.65933522,113.8,113.75,39.45043522]
[1743695530667,30.65933522,113.78,113.74,30.65933522]
[1743695531300,30.65933522,113.78,113.72,28.3319]
[1743695531301,48.28703522,113.8,113.75,39.45053522]
[1743695531681,39.49933522,113.8,113.76,30.65933522]
[1743695532066,30.65933522,113.8,113.75,39.45053522]
[1743695532290,30.65933522,113.79,113.75,8.7912]
[1743695532502,30.65933522,113.79,113.74,30.65933522]
[1743695532674,39.49933522,113.81,113.76,30.65933522]
[1743695532984,30.65933522,113.78,113.73,8.7927]
[1743695533494,30.65933522,113.78,113.74,30.65933522]
[1743695533888,27.721572,113.8,113.74,30.65933522]
[1743695534062,39.49933522,113.81,113.76,30.65933522]
[1743695534267,8.84,113.81,113.78,30.65933522]
[1743695534482,8.84,113.81,113.77,30.65933522]
[1743695534692,30.65933522,113.8,113.75,30.65933522]
[1743695534863,30.65933522,113.8,113.74,0.14216157]
[1743695535071,30.65933522,113.79,113.75,30.65933522]
[1743695535397,39.44793522,113.79,113.74,39.45093522]
[1743695535692,30.65933522,113.8,113.75,30.65933522]
[1743695536084,36.27684886,113.81,113.75,30.65933522]
[1743695536288,30.65933522,113.8,113.75,30.65933522]
[1743695536503,30.65933522,113.79,113.74,39.45093522]
[1743695538279,30.65933522,113.79,113.75,30.65933522]
[1743695538992,39.44743522,113.79,113.74,39.45093522]
[1743695539882,30.65933522,113.79,113.74,39.45093522]
[1743695540081,8.7876,113.8,113.75,30.65933522]
[1743695540272,30.65933522,113.79,113.75,30.65933522]
[1743695540991,30.65933522,113.79,113.74,39.45093522]
[1743695541513,30.65933522,113.79,113.75,30.65933522]
[1743695541798,19.17493974,113.79,113.75,19.17493974]
[1743695542495,27.96253974,113.8,113.76,8.7904]
[1743695542694,347.84964886,113.82,113.77,19.17493974]
[1743695542892,329.2,113.82,113.78,19.17493974]
[1743695543094,346.8058,113.82,113.78,19.17493974]
[1743695543393,365.98073974,113.82,113.77,19.17493974]
[1743695544099,19.17493974,113.81,113.77,19.17493974]
[1743695544298,27.96143974,113.81,113.76,19.17493974]
[1743695544499,19.17493974,113.8,113.76,19.17493974]
[1743695544893,19.17493974,113.81,113.76,27.96493974]
[1743695545081,19.17493974,113.8,113.76,27.96493974]
[1743695545300,19.17493974,113.78,113.74,19.17493974]
[1743695545775,19.17493974,113.79,113.74,19.17493974]
[1743695546179,19.17493974,113.8,113.76,8.7904]
[1743695546386,8.7866,113.81,113.76,27.96533974]
[1743695546705,46.6111886,113.81,113.76,27.96533974]
[1743695546997,19.17493974,113.8,113.75,27.96573974]
[1743695547175,27.43624886,113.81,113.75,27.96573974]
[1743695547377,19.17493974,113.78,113.74,8.7915]
[1743695547581,18.933972,113.8,113.74,8.7915]
[1743695547882,30.68207219,113.79,113.74,39.47357219]
[1743695549402,39.47017219,113.79,113.74,39.47357219]
[1743695550395,30.68207219,113.79,113.74,39.47357219]
[1743695550697,30.68207219,113.8,113.76,30.68207219]
[1743695550881,39.46957219,113.8,113.75,39.61503376]
[1743695551080,39.46957219,113.8,113.75,39.47287219]
[1743695551600,39.46957219,113.8,113.75,8.7908]
[1743695551795,39.46957219,113.8,113.75,39.47287219]
[1743695554104,30.68207219,113.79,113.75,8.7908]
[1743695555003,30.68207219,113.8,113.75,39.47287219]
[1743695555321,30.68207219,113.79,113.75,8.7908]
[1743695555597,30.68207219,113.76,113.71,39.47637219]
[1743695555805,30.68207219,113.74,113.7,10.3761]
[1743695555981,30.68207219,113.74,113.7,8.7948]
[1743695556182,30.68207219,113.74,113.7,30.68207219]
[1743695557488,30.68207219,113.74,113.69,8.93796157]
[1743695557686,8.7914,113.75,113.7,30.68207219]
[1743695557897,8.7904,113.76,113.71,30.68207219]
[1743695558100,8.82,113.78,113.72,39.47557219]
[1743695558299,8.82,113.78,113.73,30.68207219]
[1743695558503,39.50207219,113.78,113.73,30.68207219]
[1743695558690,30.68207219,113.77,113.73,30.68207219]
[1743695559298,39.47177219,113.77,113.73,39.47437219]
[1743695559704,39.47177219,113.77,113.73,8.7923]
[1743695560105,39.47177219,113.77,113.72,8.93526157]
[1743695560408,39.47177219,113.77,113.72,39.61733376]
[1743695560708,30.68207219,113.77,113.73,30.68207219]
[1743695561010,39.47177219,113.77,113.72,39.61733376]
[1743695563487,8.82,113.78,113.73,0.14216157]
[1743695563791,8.82,113.78,113.74,30.68207219]
[1743695563792,17.6093,113.78,113.74,30.68207219]
[1743695564115,8.82,113.78,113.75,30.68207219]
[1743695564306,1.6498,113.79,113.75,30.68207219]
[1743695564704,10.3382,113.82,113.77,30.68207219]
[1743695564891,1.5182,113.82,113.78,30.68207219]
[1743695565597,10.304,113.82,113.78,39.47017219]
[1743695565904,40.98607219,113.82,113.78,39.47017219]
[1743695567095,40.98607219,113.82,113.77,39.47127219]
[1743695568418,40.98607219,113.82,113.78,30.68207219]
[1743695568617,2.19735113,113.81,113.78,30.68207219]
[1743695569698,2.19735113,113.81,113.78,19.16423715]
[1743695570114,8.7858,113.82,113.78,19.16423715]
[1743695570513,8.7858,113.82,113.78,27.95243715]
[1743695570694,27.95003715,113.82,113.78,8.7882]
[1743695571714,348.22423715,113.83,113.79,19.16423715]
[1743695571900,357.00923715,113.83,113.78,19.16423715]
[1743695572297,19.16423715,113.82,113.77,19.16423715]
[1743695572833,357.00923715,113.83,113.78,19.16423715]
[1743695573009,19.16423715,113.8,113.75,8.7909]
[1743695573332,19.16423715,113.77,113.73,27.95673715]
[1743695573507,27.95343715,113.78,113.73,27.95673715]
[1743695577015,8.7892,113.78,113.74,27.95543715]
[1743695577230,10.4478,113.8,113.74,27.95543715]
[1743695577396,1.6278,113.8,113.77,19.16423715]
[1743695577604,329.06,113.83,113.78,19.16423715]
[1743695577605,27.98423715,113.82,113.78,19.16423715]
[1743695577810,27.98423715,113.82,113.77,19.16423715]
[1743695578421,2.19731714,113.81,113.77,19.16423715]
[1743695578794,2.19731714,113.81,113.77,27.95313715]
[1743695578999,19.16423715,113.79,113.75,19.16423715]
[1743695579299,19.16423715,113.78,113.74,19.16423715]
[1743695579609,19.16423715,113.78,113.73,27.95693715]
[1743695580320,19.16423715,113.77,113.73,27.95693715]
[1743695581108,36.77353715,113.78,113.73,27.95693715]
[1743695581303,19.16423715,113.77,113.72,27.95733715]
[1743695581834,19.16423715,113.74,113.71,8.7943]
[1743695582038,27.96423715,113.74,113.71,8.7943]
[1743695582538,8.8,113.74,113.71,27.95853715]
[1743695582729,8.8,113.76,113.74,8.7919]
[1743695582939,8.8,113.76,113.75,19.16423715]
[1743695583242,19.16423715,113.78,113.74,27.95613715]
[1743695583933,19.16423715,113.78,113.73,27.95673715]
[1743695584436,19.16423715,113.75,113.71,8.7943]
[1743695584747,19.16423715,113.76,113.72,27.95713715]
[1743695584905,8.7827,113.86,113.75,38.3284743]
[1743695585112,19.16423715,113.82,113.77,19.16423715]
[1743695585310,19.16423715,113.79,113.74,25.69893715]
[1743695585512,19.16423715,113.79,113.74,19.16423715]
[1743695586121,45.16423715,113.79,113.74,19.16423715]
[1743695586440,26.0,113.79,113.75,19.16423715]
[1743695586626,20.70233715,113.82,113.78,19.16423715]
[1743695586824,1.5381,113.82,113.78,27.95293715]
[1743695587344,20.70233715,113.82,113.78,27.95293715]
[1743695587716,20.70233715,113.82,113.78,8.7887]
[1743695587917,32.20403781,113.82,113.78,8.7887]
[1743695588528,30.66593781,113.81,113.77,8.7894]
[1743695589033,40.99003781,113.82,113.77,30.66593781]
[1743695589543,30.66593781,113.8,113.75,8.7912]
[1743695589716,30.66593781,113.79,113.74,8.93376157]
[1743695589919,30.66593781,113.8,113.75,30.66593781]
[1743695590716,10.3241,113.82,113.78,30.66593781]
[1743695590923,40.99003781,113.82,113.77,39.45493781]
[1743695591933,2.1973669,113.81,113.77,39.45493781]
[1743695592129,41.65000471,113.81,113.77,8.789]
[1743695592341,30.66593781,113.79,113.74,0.14216157]
[1743695592640,30.66593781,113.79,113.74,30.80809938]
[1743695593135,30.66593781,113.8,113.75,30.66593781]
[1743695593347,30.66593781,113.79,113.75,30.66593781]
[1743695593524,30.66593781,113.8,113.75,30.66593781]
[1743695593723,30.66593781,113.8,113.76,30.66593781]
[1743695594141,30.66593781,113.8,113.75,30.66593781]
[1743695594347,30.66593781,113.79,113.75,39.45653781]
[1743695594642,32.86330471,113.81,113.76,30.80809938]
[1743695594841,2.1973669,113.81,113.8,30.66593781]
[1743695595632,2.1973669,113.81,113.78,0.14216157]
[1743695595832,8.7851,113.83,113.78,30.66593781]
[1743695595833,30.66593781,113.83,113.78,30.66593781]
[1743695596034,30.66593781,113.82,113.78,30.66593781]
[1743695596237,32.24453781,113.79,113.71,30.1362]
[1743695596526,30.66593781,113.75,113.71,16.9452]
[1743695596730,39.46593781,113.76,113.71,47.61113781]
[1743695596954,30.66593781,113.75,113.71,16.9452]
[1743695597142,30.66593781,113.75,113.71,47.61113781]
[1743695597352,39.46593781,113.76,113.71,47.61113781]
[1743695598436,30.66593781,113.75,113.71,45.99113781]
[1743695598850,30.66593781,113.75,113.71,15.3252]
[1743695599037,30.66593781,113.75,113.71,45.99113781]
[1743695599245,8.8,113.76,113.72,30.66593781]
[1743695599645,39.46593781,113.76,113.72,30.66593781]
[1743695600169,30.66593781,113.75,113.71,8.7939]
[1743695600664,8.8,113.76,113.72,30.66593781]
[1743695601040,8.8,113.76,113.73,30.66593781]
[1743695601355,8.8,113.76,113.72,30.66593781]
[1743695602528,8.8,113.76,113.73,8.7927]
[1743695603054,39.46593781,113.76,113.73,8.7927]
[1743695603252,30.66593781,113.75,113.72,8.7931]
[1743695603646,30.66593781,113.75,113.71,8.7939]
[1743695604045,30.66593781,113.74,113.7,67.66506781]
[1743695604760,30.66593781,113.75,113.7,67.66506781]
[1743695605060,39.46593781,113.76,113.72,30.66593781]
[1743695605247,8.8,113.76,113.73,30.66593781]
[1743695605645,19.1673,113.79,113.74,30.66593781]
[1743695606041,49.83323781,113.79,113.74,30.66593781]
[1743695606657,8.7838,113.85,113.79,8.7877]
[1743695606835,30.66593781,113.84,113.8,30.66593781]
[1743695607440,8.7838,113.85,113.8,30.66593781]
[1743695607657,8.7838,113.85,113.79,8.7877]
[1743695607658,26.0,113.84,113.81,30.66593781]
[1743695607849,1.86642314,113.86,113.82,30.66593781]
[1743695607850,2.1970523,113.83,113.82,30.66593781]
[1743695608636,2.1970523,113.83,113.82,39.45173781]
[1743695609256,2.1970523,113.83,113.82,39.59389938]
[1743695609444,329.12,113.9,113.84,0.14216157]
[1743695609651,329.12,113.9,113.86,30.66593781]
[1743695610555,329.12,113.9,113.86,39.44793781]
[1743695611481,329.12,113.9,113.87,30.66593781]
[1743695612852,329.12,113.9,113.84,0.14216157]
[1743695612853,8.91876157,113.94,113.89,30.66593781]
[1743695613163,39.58469938,113.94,113.89,30.66593781]
[1743695613567,39.44253781,113.94,113.9,30.66593781]
[1743695613748,39.44253781,113.94,113.89,30.66593781]
[1743695613946,30.66593781,113.93,113.88,30.66593781]
[1743695614967,39.44383781,113.93,113.88,39.44703781]
[1743695615167,39.44383781,113.93,113.88,30.66593781]
[1743695615571,39.44383781,113.93,113.88,39.44693781]
[1743695616668,39.44383781,113.93,113.88,30.66593781]
[1743695616846,30.66593781,113.92,113.88,39.44703781]
[1743695617050,39.44383781,113.93,113.88,39.44703781]
[1743695618173,39.44383781,113.93,113.88,30.66593781]
[1743695618465,30.66593781,113.92,113.87,30.66593781]
[1743695618666,30.66593781,113.92,113.87,39.44763781]
[1743695618879,8.7779,113.93,113.87,39.44763781]
[1743695619080,39.44383781,113.93,113.88,30.66593781]
[1743695620182,30.66593781,113.92,113.88,30.66593781]
[1743695620470,39.46593781,113.91,113.84,0.14216157]
[1743695620669,30.66593781,113.89,113.84,8.7842]
[1743695620874,30.66593781,113.88,113.83,8.7846]
[1743695621055,30.66593781,113.88,113.83,39.45053781]
[1743695621255,30.66593781,113.89,113.84,30.66593781]
[1743695621668,30.66593781,113.89,113.83,8.7846]
[1743695621863,30.66593781,113.89,113.84,30.66593781]
[1743695622375,30.66593781,113.87,113.83,39.45053781]
[1743695622575,8.7817,113.88,113.83,39.45053781]
[1743695622873,39.44763781,113.88,113.83,39.45053781]
[1743695623175,30.66593781,113.87,113.83,8.7846]
[1743695623681,30.66593781,113.87,113.83,39.45053781]
[1743695623859,30.66593781,113.88,113.84,30.66593781]
[1743695624876,30.66593781,113.88,113.83,39.45053781]
[1743695625780,39.44713781,113.88,113.83,39.45053781]
[1743695626077,30.66593781,113.88,113.83,39.45053781]
[1743695626465,39.44593781,113.87,113.83,8.7846]
[1743695626661,8.78,113.87,113.84,30.66593781]
[1743695627477,8.78,113.87,113.83,39.45053781]
[1743695627859,8.78,113.87,113.83,27.93065796]
[1743695628056,8.78,113.87,113.84,19.14605796]
[1743695628259,28.2101811,113.9,113.85,19.14605796]
[1743695628567,36.70525796,113.91,113.87,19.14605796]
[1743695628766,27.92525796,113.91,113.87,19.14605796]
[1743695628979,8.78,113.92,113.88,19.14605796]
[1743695629183,8.78,113.92,113.89,19.14605796]
[1743695629663,8.78,113.92,113.89,30.60452694]
[1743695629859,8.78,113.92,113.89,8.7804]
[1743695630883,17.5568,113.94,113.89,39.38492694]
[1743695631083,7.7618,113.95,113.9,30.60452694]
[1743695631289,10.4068,113.95,113.91,30.60452694]
[1743695631468,41.01132694,113.95,113.91,30.60452694]
[1743695632170,41.01132694,113.95,113.91,39.38282694]
[1743695632485,30.88885008,113.94,113.87,22.09606157]
[1743695632675,30.60452694,113.92,113.88,39.38562694]
[1743695633188,30.60452694,113.93,113.88,39.38562694]
[1743695633487,30.60452694,113.93,113.89,30.60452694]
[1743695633974,30.60452694,113.94,113.89,30.60452694]
[1743695634378,30.60452694,113.94,113.9,8.7796]
[1743695634581,39.38102694,113.94,113.9,8.7796]
[1743695634780,30.60452694,113.93,113.9,8.7796]
[1743695635183,30.60452694,113.93,113.89,8.7803]
[1743695635994,30.60452694,113.92,113.89,8.7803]
[1743695636177,39.38272694,113.92,113.87,30.60452694]
[1743695636378,30.60452694,113.91,113.86,32.22432694]
[1743695637394,30.60452694,113.91,113.87,8.7815]
[1743695637595,30.60452694,113.9,113.86,39.38682694]
[1743695637782,8.78,113.91,113.86,39.38682694]
[1743695637783,30.60452694,113.89,113.86,8.7823]
[1743695637982,30.60452694,113.9,113.86,8.7823]
[1743695638477,30.60452694,113.9,113.83,1.5836]
[1743695638478,30.60452694,113.88,113.83,1.5836]
[1743695638677,30.60452694,113.88,113.84,39.38832694]
[1743695638877,30.60452694,113.89,113.84,39.38832694]
[1743695640696,30.88885008,113.9,113.85,30.60452694]
[1743695641298,30.60452694,113.89,113.84,39.38832694]
[1743695641604,30.60452694,113.87,113.83,8.7844]
[1743695641792,39.38452694,113.87,113.83,8.7844]
[1743695642198,39.38452694,113.87,113.83,39.38892694]
[1743695642399,10.70862314,113.9,113.85,30.60452694]
[1743695642588,18.64964886,113.92,113.86,30.60452694]
[1743695642589,8.7785,113.92,113.86,30.60452694]
[1743695642778,8.78,113.92,113.88,30.60452694]
[1743695642978,10.3521,113.93,113.89,30.60452694]
[1743695643178,39.38452694,113.93,113.89,30.60452694]
[1743695643499,8.78,113.93,113.89,30.60452694]
[1743695643695,8.78,113.93,113.91,30.60452694]
[1743695643899,329.02,113.98,113.92,39.38252694]
[1743695644076,39.38452694,113.97,113.93,30.60452694]
[1743695644396,30.60452694,113.96,113.92,8.778]
[1743695644601,30.60452694,113.96,113.92,39.38252694]
[1743695645111,30.60452694,113.95,113.91,39.38302694]
[1743695645310,8.7746,113.97,113.92,30.60452694]
[1743695645311,30.60452694,113.97,113.92,30.60452694]
[1743695645682,30.60452694,113.97,113.93,30.60452694]
[1743695646383,30.60452694,113.97,113.93,39.38122694]
[1743695646691,39.37882694,113.97,113.93,8.7767]
[1743695647001,368.40452694,113.98,113.93,39.38122694]
[1743695647300,130.92651958,114.0,113.95,30.60452694]
[1743695647301,45.80632694,114.0,113.95,30.60452694]
[1743695647600,30.60452694,113.99,113.94,30.60452694]
[1743695647800,30.60452694,113.99,113.95,30.60452694]
[1743695648290,30.60452694,113.99,113.95,39.37982694]
[1743695649394,39.37662694,114.0,113.95,39.37982694]
[1743695649594,30.60452694,114.01,113.96,30.60452694]
[1743695649791,14.995,114.03,113.98,30.60452694]
[1743695650097,45.59952694,114.03,113.98,30.60452694]
[1743695650275,15.0051,114.03,113.99,8.7726]
[1743695650483,54.37932694,114.03,113.99,8.7726]
[1743695650680,45.60962694,114.03,113.99,8.7726]
[1743695650881,36.82962694,114.03,113.99,8.7726]
[1743695651081,36.82962694,114.03,113.99,39.37712694]
[1743695651619,30.60452694,114.03,113.99,8.7726]
[1743695652908,30.60452694,114.02,113.98,39.37762694]
[1743695653092,30.60452694,114.02,113.97,39.37832694]
[1743695653294,30.60452694,114.01,113.97,39.37832694]
[1743695653489,30.60452694,114.01,113.97,8.7738]
[1743695653689,19.10030975,114.01,113.97,8.7738]
[1743695653884,19.10030975,114.01,113.94,27.42964886]
[1743695653885,19.10030975,113.99,113.94,19.10030975]
[1743695654486,27.87230975,114.0,113.95,27.87550975]
[1743695654692,19.10030975,114.0,113.95,27.87550975]
[1743695654892,19.10030975,113.99,113.95,8.7752]
[1743695655102,19.10030975,113.98,113.94,27.87650975]
[1743695655407,19.10030975,113.98,113.94,8.7762]
[1743695655595,19.10030975,113.98,113.93,27.87720975]
[1743695655797,30.58099271,113.98,113.93,39.35789271]
[1743695656300,30.58099271,113.97,113.93,39.35789271]
[1743695656616,39.35449271,113.98,113.93,39.35789271]
[1743695656907,30.58099271,113.98,113.93,39.35789271]
[1743695657119,30.58099271,113.99,113.95,30.58099271]
[1743695657600,8.0922,114.0,113.95,30.58099271]
[1743695657785,32.11659271,114.0,113.95,30.58099271]
[1743695658315,39.36099271,114.01,113.96,30.58099271]
[1743695658498,39.36099271,114.01,113.97,8.7742]
[1743695659008,8.78,114.01,113.97,39.35519271]
[1743695659303,30.58099271,114.02,113.97,39.35519271]
[1743695659505,30.58099271,114.02,113.98,30.58099271]
[1743695659705,39.35139271,114.02,113.98,30.58099271]
[1743695659907,39.35139271,114.02,113.97,39.35519271]
[1743695660609,16.9427,114.03,113.98,30.58099271]
[1743695660802,7.9923,114.06,114.0,30.58099271]
[1743695661012,38.57329271,114.06,114.01,30.58099271]
[1743695661306,30.58099271,114.05,114.01,30.58099271]
[1743695661706,30.58099271,114.04,114.0,30.58099271]
[1743695661911,30.58099271,114.03,113.98,30.72315428]